Cogmind - Beta 14 @@@ ROGUE MODE // 2025.05.01 @ 11:03:24 Player: BVrutally Odd Result: Destroyed self via exploding Nuclear Reactor Performance ------------- Evolutions (0) 0 Regions Visited (1) 200 Robots Destroyed (2) 10 Value Destroyed (23) 23 Prototype IDs (0) 0 Alien Tech Used (0) 0 Bonus (0) 0 TOTAL SCORE: 233 Bonus ------- None Cogmind --------- Core Integrity 0/250 Matter 268/300 Energy 94/100 System Corruption 0% Temperature Cool (0) Movement Core (50) Location -10/Materials Parts ------- > --- POWER (1) -------- (None) > --- PROPULSION (2) --- (None) > --- UTILITY (2) ------ (None) > --- WEAPON (2) ------- Light Assault Rifle > --- INVENTORY (5) ---- Ion Engine Aluminum Leg Wheel Wheel Peak State ------------ > --- POWER ------------ Light Ion Engine > --- PROPULSION ------- Light Treads Light Treads > --- UTILITY ---------- Small Storage Unit > --- WEAPON ----------- Medium Laser Assault Rifle > --- INVENTORY -------- (None) [Rating: 6] Favorites ----------- Power Light Ion Engine Engine Light Ion Engine Propulsion Light Treads Treads Light Treads Leg Aluminum Leg Utility Small Storage Unit Storage Small Storage Unit Weapon Assault Rifle Energy Gun Medium Laser Ballistic Gun Assault Rifle Build | -11 -10 ------- Run | Yrd Mat Slots Evolved . | . . Power . | . . Propulsion . | . . Utility . | . . Weapon . | . . Parts Attached 8 | 8 . Power 1 | 1 . Engine 1 | 1 . Core . | . . Reactor . | . . Propulsion 3 | 3 . Treads 2 | 2 . Leg 1 | 1 . Wheel . | . . Hover . | . . Flight . | . . Utility 1 | 1 . Device . | . . Storage 1 | 1 . Processor . | . . Hackware . | . . Protection . | . . Artifact . | . . Weapon 3 | 3 . Energy Gun 1 | 1 . Energy Cannon . | . . Ballistic Gun 2 | 2 . Ballistic Cannon . | . . Launcher . | . . Special Weapon . | . . Impact Weapon . | . . Slashing Weapon . | . . Piercing Weapon . | . . Special Melee Weapon . | . . Unidentified Prototypes . | . . Parts Lost 5 | 5 . Power 1 | 1 . Propulsion 2 | 2 . Utility . | . . Weapon 2 | 2 . Highest Loss Streak 5 | 5 . To Critical Strikes . | . . Average Slot Usage (%) 28 | . 28 Leg 7 | . 7 Storage 7 | . 7 Ballistic Gun 14 | . 14 Peak Build Rating 6 | 6 3 Average Rating 4 | 5 2 On Entrance 1 | . 3 Naked Turns . | . . Heaviest Build 12 | 12 6 Greatest Support 40 | 40 10 Greatest Overweight (x) . | . . Average Overweight (x) . | . . Largest Inventory Capacity 8 | 8 8 Average Capacity 7 | 7 7 Most Carried 6 | 6 4 Average Carried 4 | 4 4 Final Capacity 8 | 8 5 Final Carried 4 | 4 4 Class Distribution -------------------- 100% | Mutant Dominant Class ---------------- Mutant | -10/Materials Resources | -11 -10 ----------- Run | Yrd Mat Matter Collected 165 | 165 . Remotely . | . . Salvage Created 9 | 9 . Parts . | . . Haulers Intercepted . | . . Recyclers Shooed . | . . Parts Field Recycled . | . . Retrieved Matter . | . . Parts Self-Destructed . | . . Prevented . | . . Kills | -11 -10 ------- Run | Yrd Mat Combat Hostiles Destroyed . | . . Classes Destroyed 2 | 2 . Tunneler 1 | 1 . Recycler 1 | 1 . Best Kill Streak 1 | 1 . Combat Bots Only . | . . Max Kills in Single Turn 1 | 1 . Gunslinging . | . . Exploded . | . . Melee . | . . Uniques/NPCs Destroyed . | . . Combat | -11 -10 -------- Run | Yrd Mat Hostile Shots Fired 24 | 24 . Missed 4 | 4 . Damage Taken 846 | 772 74 Core 253 | 179 74 Absorbed by Shields . | . . Core Remaining (%) 28 | 28 . Volleys Fired 12 | 8 4 Largest 2 | 2 1 Hottest 70 | 70 20 Shots Fired 16 | 12 4 Gun 16 | 12 4 Cannon . | . . Launcher . | . . Special . | . . Kinetic 11 | 7 4 Thermal 5 | 5 . Explosive . | . . Electromagnetic . | . . Robot Hit Streak 1 | 1 . Robot Miss Streak 4 | 4 . Penetration Max . | . . Secondary Targets . | . . Shots Hit Robots 4 | 4 . Core Hits 5 | 5 . Critical Kills . | . . Critical Parts Destroyed . | . . Critical Strikes 1 | 1 . Burn 1 | 1 . Melee Attacks . | . . Impact . | . . Slashing . | . . Piercing . | . . Sneak Attacks . | . . Combat Hostiles . | . . Follow-up Attacks . | . . Damage Inflicted 84 | 84 . Guns 62 | 62 . Cannons . | . . Explosions . | . . Melee . | . . Ramming 22 | 22 . Kinetic 24 | 24 . Thermal 38 | 38 . Explosive . | . . Electromagnetic . | . . Impact . | . . Slashing . | . . Piercing . | . . Highest Corruption . | . . Average Corruption . | . . Corruption Purged . | . . Corruption Blocked . | . . Overload Shots . | . . Overflow Damage . | . . Projectiles . | . . Explosions . | . . Melee . | . . Knockbacks . | . . Impact . | . . Kinetic . | . . Secondary . | . . Self-Inflicted Damage 113 | . 113 Shots 1 | . 1 Rammed 29 | 29 . Targets Rammed 30 | 30 . Kicked . | . . Crushed 1 | 1 . Highest Temperature 18 | 18 . Average Temperature 9 | 9 . Received Heat Transfer . | . . Siege Activations . | . . Robots Corrupted . | . . Combat Hostiles . | . . Parts Fried . | . . Impact Corruptions . | . . Robots Melted . | . . Combat Hostiles . | . . Parts Melted . | . . Heat Transferred 185 | 185 . Parts Sabotaged . | . . Parts Stolen . | . . Parts Stripped . | . . Power Chain Reactions . | . . Alert | -11 -10 ------- Run | Yrd Mat Peak Influence 15 | 10 15 Initial . | . . Average 1 | 1 . Maximum Alert Level . | . . Low Security (%) 100 | 100 100 Level 1 . | . . Level 2 . | . . Level 3 . | . . Level 4 . | . . Level 5 . | . . High Security . | . . Max Security . | . . Squads Dispatched . | . . Investigation . | . . Extermination . | . . Reinforcement . | . . Assault . | . . Garrison . | . . Intercept . | . . Searches Triggered . | . . Construction Impeded . | . . Haulers Reinforced . | . . Active Scanning Responses . | . . Cargo Convoy Interrupts . | . . Stealth | -11 -10 --------- Run | Yrd Mat Distress Signals . | . . Communications Jammed . | . . Distress Signals . | . . Times Spotted 22 | 22 . Peak Tracking Total 17 | 17 . Tactical Retreats . | . . Traps | -11 -10 ------- Run | Yrd Mat Traps Triggered . | . . Indirectly . | . . Trap Hack Attempts . | . . Triggered . | . . Disarmed . | . . Reprogrammed . | . . Reused . | . . Traps Extracted . | . . Installed . | . . Triggered . | . . Machines | -11 -10 ---------- Run | Yrd Mat Machines Disabled 1 | . 1 Max in Single Turn 1 | . 1 Machines Repaired . | . . Machines Dismantled . | . . Machines Sabotaged . | . . Overloaded Fab Kills . | . . Hacking | -11 -10 --------- Run | Yrd Mat Machines Accessed . | . . Terminals . | . . Fabricators . | . . Repair Stations . | . . Recycling Units . | . . Scanalyzers . | . . Garrison Access . | . . Total Hacks . | . . Successful . | . . Failed . | . . Catastrophic . | . . Database Lockouts . | . . Manual . | . . Terminals . | . . Fabricators . | . . Repair Stations . | . . Recycling Units . | . . Scanalyzers . | . . Garrison Access . | . . Terminal Hacks . | . . Fabricator Hacks . | . . Repair Station Hacks . | . . Recycling Unit Hacks . | . . Scanalyzer . | . . Garrison Access Hacks . | . . Unauthorized Hacks . | . . Terminals . | . . Fabricators . | . . Repair Stations . | . . Recycling Units . | . . Scanalyzers . | . . Garrison Access . | . . Data Cores Recovered . | . . Used . | . . Hacking Detections . | . . Full Trace Events . | . . Feedback Events . | . . Feedback Blocked . | . . Robot Schematics Acquired . | . . Robots Built . | . . Authchips . | . . Time . | . . Total Robot Build Rating . | . . Part Schematics Acquired . | . . Parts Built . | . . Authchips . | . . Time . | . . Total Part Build Rating . | . . Parts Repaired . | . . Time . | . . Parts Recycled . | . . Recycled Matter . | . . Retrieved Matter . | . . Retrieved Components . | . . Parts Scanalyzed . | . . Part Schematics Acquired . | . . Parts Damaged . | . . Bothacking | -11 -10 ------------ Run | Yrd Mat Used RIF Installer . | . . Robots Hacked . | . . Non-combat . | . . Combat . | . . Robot Hacks Applied . | . . Relay Couplers Released . | . . Fabnet Peak Effective % . | . . Robots Rewired . | . . Allies Hacked . | . . Hacks Repelled . | . . Allies | -11 -10 -------- Run | Yrd Mat Total Allies . | . . Largest Group . | . . Highest-Rated Group . | . . Highest-Rated Ally . | . . Total Orders . | . . Ally Attacks . | . . Total Damage . | . . Kills . | . . Allies Corrupted . | . . Allies Melted . | . . Intel | -11 -10 ------- Run | Yrd Mat Robot Analysis Total . | . . Derelict Logs Recovered . | . . Drone Launches . | . . Drone Recoveries . | . . Exploration | -11 -10 ------------- Run | Yrd Mat Turns Passed 1129 | 1113 16 Spaces Moved 195 | 189 6 Core 3 | 3 . Treads 184 | 184 . Legs 8 | 2 6 Wheels . | . . Hover . | . . Flight . | . . Fastest Speed 50 | 50 120 Average Speed 156 | 157 120 Slowest Speed 160 | 160 120 Overloaded Moves . | . . Propulsion Burnouts . | . . Robots Hopped . | . . Cave-ins Triggered . | . . Exploration Rate (%) 7 | 11 4 Regions Visited 1 Branch Regions . Pre-discovered Areas . | . . Known Exits Taken . | . . Unknown Exits Taken 1 | 1 . Scrap Searched . | . . Spaces Dug . | . . Terrain Destroyed . | . . Melee . | . . Projectile . | . . AOE . | . . Terrain Rammed . | . . Walls Destroyed . | . . Machines Disabled . | . . Actions | -11 -10 --------- Run | Yrd Mat Total 983 | 971 12 Wait 731 | 731 . Move 194 | 188 6 Hop . | . . Pick Up 6 | 6 . Fast Attach 6 | 6 . Attach 2 | 2 . Detach . | . . Swap . | . . Drop 2 | . 2 Fire 12 | 8 4 Melee . | . . Ram . | . . Kick . | . . Crush 30 | 30 . Escape Stasis . | . . Rewire . | . . Trap . | . . Miscellaneous . | . . Route ------- -11/Scrapyard -10/Materials History --------- Turn | Location | Event 8 | -11/Scrapyard | Discovered new exit (range 16) 1091 | -11/Scrapyard | Assembled infested the area 1107 | -11/Scrapyard | Core integrity fell below 50% 1114 | -11/Scrapyard | Entered Materials 1127 | -10/Materials | Build established: Mutant 1130 | -10/Materials | Destroyed self via exploding Nuclear Reactor Last Messages --------------- 01104_ Med. Laser destroyed. 01104_ Lgt. Ion Engine destroyed. 01104_ D-53 Grenadier destroyed. 01108_ as-75057 destroyed. 01108_ as-75544 destroyed. 01108_ as-69875 destroyed. 01108_ T-07 Excavator destroyed. 01109_ The unstable cave ceiling collapses. 01111_ Lgt. Treads destroyed. 01111_ as-91588 destroyed. 01112_ D-53 Grenadier suffers critical hit (Destroy). 01112_ D-53 Grenadier destroyed. LOCATION=UNKNOWN GOAL=ESCAPE 01114_ ALERT: A rogue bot has emerged from the scrapyard. Terminate on contact. 01127_ Dropped Aluminum Leg. 01128_ Dropped Sml. Storage Unit. 01130_ Nuclear Reactor explodes. Map ----- +----------------------------------------------------+ | ?????????????????????????????????? | | ?????????????????????????????????? | | ?????????????????????????????????? | | ?????????????????????????????????? | | ?????????????????????????????????? | | ?????????????????????????????????? | | ?????????????????????????????????? | | ?????????????????????????????????? | | ?????????????????????????????????? | | ?????????????????????????????????? | | ?????????????????????????????????? | | ?????????????????????????????????? | | ?????????????????????????????????? | | ?????????????????????????????????? | | ?????????????????????????????????? | | ?????????????????????????????????? | | ?????????????????????????????????? | | ?????????????????????????????????? | | ?????????????????????????????????? | | ??????????????????????###########? | | ??????????????????????# #? | | ??????????????????????# #? | | ??????????????????????# """ #? | | ??????????????????????# """ #? | | ??????????????????????# """ #? | | ??????????????????????# @! #? | | ??????????????????????# #? | | ????????????????## ??# #? | | ????????????????# ###+#######? | | ????????????????# #???? | | ????????????????# #???? | | ????????????????# #???? | | ????????????????# ########???? | | ????????????????## #???????????? | | ?????????????????# ????????????? | | ?????????????????# ?????????????? | | ?????????????????+ ??????????????? | | ?????????????????#???????????????? | | ?????????????????????????????????? | | ?????????????????????????????????? | | ?????????????????????????????????? | | ?????????????????????????????????? | | ?????????????????????????????????? | | ?????????????????????????????????? | | ?????????????????????????????????? | | ?????????????????????????????????? | | ?????????????????????????????????? | | ?????????????????????????????????? | | ?????????????????????????????????? | | ?????????????????????????????????? | +----------------------------------------------------+ Best States ------------- Heat Dissipation 25 Energy Generation 10 Energy Capacity 125 Matter Stores 300 Matter Capacity 300 Sight Range 16 Terrain Scan Density 10 Evasion (%) 55 Recoil Reduction 2 Item Schematics ----------------- None Robot Schematics ------------------ None Fabricated ------------ Nothing Alien Tech Used ----------------- None Achievements -------------- Curiosity Killed The Cat Challenges ------------ None Game ------ Seed ScanCoreFemtoactuators Manual? 0 Play Time 00:03:06 Cumulative 241.3 hours Start 2025.05.01 @ 10:54:34 End 2025.05.01 @ 11:03:24 Sessions 1 Manual Loads 0 Difficulty Rogue Special Mode None Game No. 115 Rogue 56 Adventurer 16 Explorer 43 Win Type - Total 33 Types 20/5/2/1/0/1/2/1/1 Lore% 86 Gallery% 88 Achievement% 80 Wizard Run 0 Options --------- Layout 2 ASCII 0 Keyboard 0 Movement Numpad Keybinds 0 Fullscreen 1 Font 32/Tamsyn Map View 50x44 Zoom Use 0% Tactical HUD 1 Map Filters NONE Filters NONE Steam 1 RUN: e501bd68-548a-4c42-957d-2b0b2dc27209